Cogmind - Beta 14 @@@ ROGUE MODE // 2024.12.04 @ 21:39:51 Player: Skullbearer Result: Destroyed by S-10 Pest with Light Assault Rifle Performance ------------- Evolutions (0) 0 Regions Visited (2) 400 Robots Destroyed (12) 60 Value Destroyed (316) 316 Prototype IDs (0) 0 Alien Tech Used (0) 0 Bonus (0) 0 TOTAL SCORE: 776 Bonus ------- None Cogmind --------- Core Integrity 0/250 Matter 70/300 Energy 0/100 System Corruption 0% Temperature Cool (0) Movement Core (100) Ox1 Location -10/Mines Parts ------- > --- POWER (1) -------- (None) > --- PROPULSION (2) --- Flight Unit > --- UTILITY (2) ------ ECM Suite > --- WEAPON (2) ------- Mining Claw > --- INVENTORY (5) ---- Ion Engine Flight Unit Small Storage Unit Mini Grenade Launcher Mining Laser Peak State ------------ > --- POWER ------------ Light Ion Engine > --- PROPULSION ------- Flight Unit Flight Unit > --- UTILITY ---------- Terrain Scanner ECM Suite > --- WEAPON ----------- Mini Grenade Launcher Mini Grenade Launcher > --- INVENTORY -------- Ion Engine Flight Unit Small Storage Unit Mining Laser [Rating: 9] Favorites ----------- Power Light Ion Engine Engine Light Ion Engine Propulsion Flight Unit Wheel Wheel Flight Unit Flight Unit Utility ECM Suite Device ECM Suite Storage Small Storage Unit Weapon Mini Grenade Launcher Energy Gun Small Laser Launcher Mini Grenade Launcher Slashing Weapon Mining Claw Build | -11 -10 -10 ------- Run | Yrd Mat Min Slots Evolved . | . . . Power . | . . . Propulsion . | . . . Utility . | . . . Weapon . | . . . Parts Attached 20 | 7 11 2 Power 4 | 2 2 . Engine 4 | 2 2 . Core . | . . . Reactor . | . . . Propulsion 7 | 2 4 1 Treads . | . . . Leg . | . . . Wheel 2 | 2 . . Hover . | . . . Flight 5 | . 4 1 Utility 4 | 1 3 . Device 2 | . 2 . Storage 2 | 1 1 . Processor . | . . . Hackware . | . . . Protection . | . . . Artifact . | . . . Weapon 5 | 2 2 1 Energy Gun 2 | 2 . . Energy Cannon . | . . . Ballistic Gun . | . . . Ballistic Cannon . | . . . Launcher 2 | . 2 . Special Weapon . | . . . Impact Weapon . | . . . Slashing Weapon 1 | . . 1 Piercing Weapon . | . . . Special Melee Weapon . | . . . Unidentified Prototypes . | . . . Parts Lost 6 | . 2 4 Power 2 | . 1 1 Propulsion 3 | . 1 2 Utility 1 | . . 1 Weapon . | . . . Highest Loss Streak 4 | . 1 4 To Critical Strikes . | . . . Average Slot Usage (%) 79 | . 83 70 Engine 12 | . 14 7 Wheel 3 | . 4 . Flight 23 | . 23 22 Device 13 | . 9 23 Storage 1 | . 2 . Energy Gun 6 | . 8 . Launcher 14 | . 19 3 Slashing Weapon 3 | . . 12 Peak Build Rating 9 | 6 9 9 Average Rating 6 | 4 7 5 On Entrance 5 | . 6 9 Naked Turns . | . . . Heaviest Build 13 | 13 13 9 Greatest Support 20 | 20 20 8 Greatest Overweight (x) 3 | . 3 1 Average Overweight (x) . | . . . Largest Inventory Capacity 8 | 8 8 5 Average Capacity 5 | 6 5 5 Most Carried 5 | 4 5 5 Average Carried 4 | 1 4 4 Final Capacity 8 | 8 5 5 Final Carried 5 | 4 4 5 Class Distribution -------------------- 100% | Mutant Dominant Class ---------------- Mutant | -10/Materials Mutant | -10/Mines Resources | -11 -10 -10 ----------- Run | Yrd Mat Min Matter Collected 300 | 202 30 68 Remotely . | . . . Salvage Created 213 | . 189 24 Parts 15 | . 12 3 Haulers Intercepted . | . . . Recyclers Shooed . | . . . Parts Field Recycled . | . . . Retrieved Matter . | . . . Parts Self-Destructed . | . . . Prevented . | . . . Kills | -11 -10 -10 ------- Run | Yrd Mat Min Combat Hostiles Destroyed 9 | . 7 2 Melee 2 | . . 2 AOE 7 | . 7 . Classes Destroyed 5 | . 5 . Tunneler 1 | . 1 . Recycler 1 | . 1 . Watcher 1 | . 1 . Swarmer 3 | . 1 2 Grunt 6 | . 6 . Best Kill Streak 6 | . 6 2 Combat Bots Only 4 | . 4 2 Max Kills in Single Turn 2 | . 2 1 Gunslinging . | . . . Exploded 2 | . 2 . Melee 1 | . . 1 Uniques/NPCs Destroyed . | . . . Combat | -11 -10 -10 -------- Run | Yrd Mat Min Hostile Shots Fired 98 | . 63 35 Missed 42 | . 38 4 Damage Taken 499 | . 256 243 Core 253 | . 96 157 Absorbed by Shields . | . . . Core Remaining (%) 100 | 100 . . Volleys Fired 8 | . 8 . Largest 2 | . 2 . Hottest 60 | . 60 . Shots Fired 16 | . 16 . Gun . | . . . Cannon . | . . . Launcher 16 | . 16 . Special . | . . . Kinetic . | . . . Thermal . | . . . Explosive 16 | . 16 . Electromagnetic . | . . . Robot Hit Streak 7 | . 7 . Robot Miss Streak 2 | . 2 . Penetration Max . | . . . Secondary Targets . | . . . Shots Hit Robots 14 | . 9 5 Core Hits 19 | . 17 2 Critical Kills . | . . . Critical Parts Destroyed . | . . . Critical Strikes . | . . . Melee Attacks 14 | . . 14 Impact . | . . . Slashing 14 | . . 14 Piercing . | . . . Sneak Attacks . | . . . Combat Hostiles . | . . . Follow-up Attacks . | . . . Damage Inflicted 984 | . 856 128 Guns . | . . . Cannons . | . . . Explosions 856 | . 856 . Melee 128 | . . 128 Ramming . | . . . Kinetic . | . . . Thermal . | . . . Explosive 856 | . 856 . Electromagnetic . | . . . Impact . | . . . Slashing 128 | . . 128 Piercing . | . . . Highest Corruption . | . . . Average Corruption . | . . . Corruption Purged . | . . . Corruption Blocked . | . . . Overload Shots . | . . . Overflow Damage 33 | . 24 9 Projectiles . | . . . Explosions 24 | . 24 . Melee 9 | . . 9 Knockbacks . | . . . Impact . | . . . Kinetic . | . . . Secondary . | . . . Self-Inflicted Damage . | . . . Shots . | . . . Rammed . | . . . Targets Rammed . | . . . Kicked . | . . . Crushed . | . . . Highest Temperature 24 | . 24 . Average Temperature 10 | . 10 . Received Heat Transfer 81 | . 81 . Siege Activations . | . . . Robots Corrupted . | . . . Combat Hostiles . | . . . Parts Fried . | . . . Impact Corruptions . | . . . Robots Melted . | . . . Combat Hostiles . | . . . Parts Melted . | . . . Heat Transferred . | . . . Parts Sabotaged . | . . . Parts Stolen . | . . . Parts Stripped . | . . . Power Chain Reactions . | . . . Alert | -11 -10 -10 ------- Run | Yrd Mat Min Peak Influence 416 | . 416 172 Initial 162 | . . 162 Average 153 | . 178 163 Maximum Alert Level 2 | . 2 . Low Security (%) 70 | 100 54 100 Level 1 16 | . 25 . Level 2 13 | . 20 . Level 3 . | . . . Level 4 . | . . . Level 5 . | . . . High Security . | . . . Max Security . | . . . Squads Dispatched 2 | . 2 . Investigation 1 | . 1 . Extermination . | . . . Reinforcement 1 | . 1 . Assault . | . . . Garrison . | . . . Intercept . | . . . Searches Triggered . | . . . Construction Impeded . | . . . Haulers Reinforced . | . . . Active Scanning Responses . | . . . Cargo Convoy Interrupts . | . . . Stealth | -11 -10 -10 --------- Run | Yrd Mat Min Distress Signals 1 | . 1 . Communications Jammed . | . . . Distress Signals . | . . . Times Spotted 20 | . 17 3 Peak Tracking Total 5 | . 5 3 Tactical Retreats 4 | . 4 . Traps | -11 -10 -10 ------- Run | Yrd Mat Min Traps Triggered 1 | . 1 . Indirectly . | . . . Trap Hack Attempts . | . . . Triggered . | . . . Disarmed . | . . . Reprogrammed . | . . . Reused . | . . . Traps Extracted . | . . . Installed . | . . . Triggered . | . . . Machines | -11 -10 -10 ---------- Run | Yrd Mat Min Machines Disabled 5 | . 5 . Max in Single Turn 3 | . 3 . Machines Repaired . | . . . Machines Dismantled . | . . . Machines Sabotaged . | . . . Overloaded Fab Kills . | . . . Hacking | -11 -10 -10 --------- Run | Yrd Mat Min Machines Accessed 3 | . 3 . Terminals 3 | . 3 . Fabricators . | . . . Repair Stations . | . . . Recycling Units . | . . . Scanalyzers . | . . . Garrison Access . | . . . Total Hacks 13 | . 13 . Successful 7 | . 7 . Failed 6 | . 6 . Catastrophic 1 | . 1 . Database Lockouts . | . . . Manual . | . . . Terminals 13 | . 13 . Fabricators . | . . . Repair Stations . | . . . Recycling Units . | . . . Scanalyzers . | . . . Garrison Access . | . . . Terminal Hacks 7 | . 7 . Record 2 | . 2 . Robot Analysis 1 | . 1 . Alert Level 1 | . 1 . Dispatch Records 1 | . 1 . Security Status 1 | . 1 . Zone Layout 1 | . 1 . Fabricator Hacks . | . . . Repair Station Hacks . | . . . Recycling Unit Hacks . | . . . Scanalyzer . | . . . Garrison Access Hacks . | . . . Unauthorized Hacks . | . . . Terminals . | . . . Fabricators . | . . . Repair Stations . | . . . Recycling Units . | . . . Scanalyzers . | . . . Garrison Access . | . . . Data Cores Recovered . | . . . Used . | . . . Hacking Detections 3 | . 3 . Full Trace Events . | . . . Feedback Events . | . . . Feedback Blocked . | . . . Robot Schematics Acquired . | . . . Robots Built . | . . . Authchips . | . . . Time . | . . . Total Robot Build Rating . | . . . Part Schematics Acquired . | . . . Parts Built . | . . . Authchips . | . . . Time . | . . . Total Part Build Rating . | . . . Parts Repaired . | . . . Time . | . . . Parts Recycled . | . . . Recycled Matter . | . . . Retrieved Matter . | . . . Retrieved Components . | . . . Parts Scanalyzed . | . . . Part Schematics Acquired . | . . . Parts Damaged . | . . . Bothacking | -11 -10 -10 ------------ Run | Yrd Mat Min Used RIF Installer . | . . . Robots Hacked . | . . . Non-combat . | . . . Combat . | . . . Robot Hacks Applied . | . . . Relay Couplers Released . | . . . Fabnet Peak Effective % . | . . . Robots Rewired . | . . . Allies Hacked . | . . . Hacks Repelled . | . . . Allies | -11 -10 -10 -------- Run | Yrd Mat Min Total Allies . | . . . Largest Group . | . . . Highest-Rated Group . | . . . Highest-Rated Ally . | . . . Total Orders . | . . . Ally Attacks . | . . . Total Damage . | . . . Kills . | . . . Allies Corrupted . | . . . Allies Melted . | . . . Intel | -11 -10 -10 ------- Run | Yrd Mat Min Robot Analysis Total 1 | . 1 . Derelict Logs Recovered . | . . . Drone Launches . | . . . Drone Recoveries . | . . . Exploration | -11 -10 -10 ------------- Run | Yrd Mat Min Turns Passed 521 | 60 335 126 Spaces Moved 761 | 53 612 96 Core 2 | 1 . 1 Treads . | . . . Legs . | . . . Wheels 121 | 52 69 . Hover . | . . . Flight 638 | . 543 95 Fastest Speed 37 | 50 37 37 Average Speed 44 | 79 42 38 Slowest Speed 285 | 80 285 117 Overloaded Moves . | . . . Propulsion Burnouts . | . . . Robots Hopped 7 | . 7 . Cave-ins Triggered . | . . . Exploration Rate (%) 39 | 4 89 26 Regions Visited 2 Branch Regions 1 Pre-discovered Areas . | . . . Known Exits Taken . | . . . Unknown Exits Taken 2 | 1 1 . Scrap Searched 1 | . . 1 Spaces Dug . | . . . Terrain Destroyed 105 | . 105 . Melee . | . . . Projectile . | . . . AOE 105 | . 105 . Terrain Rammed . | . . . Walls Destroyed . | . . . Machines Disabled . | . . . Actions | -11 -10 -10 --------- Run | Yrd Mat Min Total 890 | 67 666 157 Wait 75 | 5 27 43 Move 746 | 52 598 96 Hop 6 | . 6 . Pick Up 8 | 3 5 . Fast Attach 14 | 6 6 2 Attach 3 | . 3 . Detach 3 | . 2 1 Swap 3 | 1 2 . Drop 10 | . 9 1 Fire 8 | . 8 . Melee 14 | . . 14 Ram . | . . . Kick . | . . . Crush . | . . . Escape Stasis . | . . . Rewire . | . . . Trap . | . . . Miscellaneous . | . . . Route ------- -11/Scrapyard -10/Materials (discovered 3 exits: [*Mat x2] / [*Min]) -10/Mines History --------- Turn | Location | Event 11 | -11/Scrapyard | Discovered new exit (range 16) 61 | -11/Scrapyard | Entered Materials 201 | -10/Materials | Discovered new exit (range 4) 258 | -10/Materials | Discovered new exit (range 10) 308 | -10/Materials | Discovered new exit (range 15) 309 | -10/Materials | Build established: Mutant 396 | -10/Materials | Entered Mines 411 | -10/Mines | Met a Derelict bent on vengeance 487 | -10/Mines | Core integrity fell below 50% 512 | -10/Mines | Core integrity fell below 20% 515 | -10/Mines | Lost 4 parts (1p2n1u) 522 | -10/Mines | Destroyed by S-10 Pest with Light Assault Rifle Last Messages --------------- GOAL=ESCAPE Something is scanning the area. Searching scrap... Found Wheel. Found Weapon Shielding. Found Mining Claw. Found 44 Matter. Dropped Mni. Grenade Launcher. Acquired 44 matter. Acquired Mining Claw. S-10 Pest destroyed. Lgt. Ion Engine destroyed. Acquired 14 matter. Destroyed Flight Unit. Flight Unit destroyed. S-10 Pest destroyed. Flight Unit destroyed. Acquired 10 matter. Terrain Scanner destroyed. Acquired Flight Unit. Map ----- +----------------------------------------------------+ | | | | | | | | | | | | | | | | | | | | | | | | | | | | | | | ?????????????????????????????? | | ??#??????????####????????????? | | ???#????#???## ##????#??????? | | ????????????# #??????#????? | | ????????????# #???????????? | | ??????#?#???## ##?????#?????? | | ????????????## ##???????????? | | ??######???## #???????#????? | | ??# #???# #??????#####?? | | #?# ##### ##?##???# ##? | | ??#s @ = [ ##???????# ## | | ??# ##### #?????????# # | | ??# #???# #??######## # | | ??# #?#?# #?## ## | | ??# #???# ### | | #?# #???# | | ??# #?#?# | | ??# #???######## ## | | ??# #????#?????######## | | ??# #?#?#?????#???????# | | ??######?##??#????#?#???# | | ???????????????????????# | | ?????????????????????? | | ???????????????????? # | | ??????????????????? ## | | ?????????????????? ##? | | ????????????????? ###??? | | ????????????????? ## #?????? | | ???????????????????####??????? | | ?????????????????????????????? | | ?????????????????????????????? | | ?????????????????????????????? | | ?????????????????????????????? | | ?????????????????????????????? | | ?????????????????????????????? | +----------------------------------------------------+ Best States ------------- Heat Dissipation 25 Energy Generation 10 Energy Capacity 250 Matter Stores 232 Matter Capacity 300 Sight Range 16 Terrain Scan Range 14 Terrain Scan Density 10 ECM Strength 1 Evasion (%) 62 Item Schematics ----------------- None Robot Schematics ------------------ None Fabricated ------------ Nothing Alien Tech Used ----------------- None Achievements -------------- None Challenges ------------ None Game ------ Seed BombardmentRocketCharge Manual? 0 Play Time 00:10:32 Cumulative 9.5 hours Start 2024.12.04 @ 21:30:43 End 2024.12.04 @ 21:39:51 Sessions 1 Manual Loads 0 Difficulty Rogue Special Mode None Game No. 14 Rogue 14 Adventurer 0 Explorer 0 Win Type - Total 0 Types 0/0/0/0/0/0/0/0/0 Lore% 9 Gallery% 13 Achievement% 13 Wizard Run 0 Options --------- Layout 1 ASCII 0 Keyboard 0 Movement Numpad Keybinds 0 Fullscreen 1 Font 32/SmallcapsGlow Map View 50x35 Zoom Use 0% Tactical HUD 0 Map Filters NONE Filters NONE Steam 1 RUN: f3eb1742-ee80-477d-a4cd-525c6c9882da